fUSD/lending_fUSD_20260319
["ID","MTS","AMOUNT","RATE_DAILY","PERIOD"]
[408565160,1773892276215,-280.246662,0.00015342,2]
[408565161,1773892276226,-1111.289819,0.00015342,2]
[408565162,1773892276236,-1111.289819,0.00015342,2]
[408565163,1773892276246,-1111.289819,0.00015342,2]
[408565164,1773892276258,-1111.289815,0.00015342,2]
[408565165,1773892276268,-319.911065,0.00015342,2]
[408565166,1773892276279,-319.911065,0.00015342,2]
[408565167,1773892276289,-319.911065,0.00015342,2]
[408565168,1773892276300,-319.911071,0.00015342,2]
[408565169,1773892276311,-845.938546,0.00015342,2]
[408565170,1773892276321,-1370.881087,0.00015342,2]
[408565171,1773892276331,-845.938546,0.00015342,2]
[408565172,1773892276341,-1370.881087,0.00015342,2]
[408565173,1773892276352,-845.938546,0.00015342,2]
[408565174,1773892276362,-1370.881087,0.00015342,2]
[408565175,1773892276373,-845.938552,0.00015342,2]
[408565176,1773892276385,-1370.881085,0.00015342,2]
[408565177,1773892276686,-2199.815114,0.00015342,2]
[408565178,1773892276696,-1651.820882,0.00015342,2]
[408565179,1773892276706,-2199.815114,0.00015342,2]
[408565180,1773892276717,-1651.820882,0.00015342,2]
[408565181,1773892276726,-2199.815114,0.00015342,2]
[408565182,1773892276737,-151.0,0.00015342,2]
[408565183,1773892276748,-1651.820882,0.00015342,2]
[408565184,1773892276759,-252.461609,0.00015342,2]
[408565185,1773892276769,-2199.815115,0.00015342,2]
[408565186,1773892276779,-252.461609,0.00015342,2]
[408565187,1773892276789,-1651.82088,0.00015342,2]
[408565188,1773892276800,-2289.291087,0.00015342,2]
[408565189,1773892276810,-252.461609,0.00015342,2]
[408565190,1773892276820,-151.0,0.00015342,2]
[408565191,1773892276830,-2289.291087,0.00015342,2]
[408565192,1773892276839,-151.0,0.00015342,2]
[408565193,1773892276849,-252.4616,0.00015342,2]
[408565194,1773892276858,-151.0,0.00015342,2]
[408565195,1773892276867,-151.0,0.00015342,2]
[408565196,1773892276877,-151.0,0.00015342,2]
[408565197,1773892276886,-883.04,0.00015342,2]
[408565198,1773892276896,-2289.291087,0.00015342,2]
[408565199,1773892276905,-151.0,0.00015342,2]
[408565200,1773892276917,-971.057393,0.00015342,2]
[408565201,1773892276926,-2289.291086,0.00015342,2]
[408565202,1773892276935,-544.326923,0.00015342,2]
[408565203,1773892276945,-971.057393,0.00015342,2]
[408565204,1773892276955,-544.326923,0.00015342,2]
[408565205,1773892276964,-766.398952,0.00015342,2]
[408565206,1773892276974,-971.057393,0.00015342,2]
[408565207,1773892276983,-544.326923,0.00015342,2]
[408565208,1773892276993,-766.398952,0.00015342,2]
[408565209,1773892277002,-971.057388,0.00015342,2]
[408565210,1773892277012,-151.0,0.00015342,2]
[408565211,1773892277022,-544.326918,0.00015342,2]
[408565212,1773892277032,-766.398952,0.00015342,2]
[408565213,1773892277042,-868.824962,0.00015342,2]
[408565214,1773892277051,-151.0,0.00015342,2]
[408565215,1773892277065,-766.398952,0.00015342,2]
[408565216,1773892277075,-151.0,0.00015342,2]
[408565217,1773892277085,-868.824962,0.00015342,2]
[408565218,1773892277095,-151.0,0.00015342,2]
[408565219,1773892277104,-868.824962,0.00015342,2]
[408565220,1773892277114,-151.0,0.00015342,2]
[408565221,1773892277123,-868.824967,0.00015342,2]
[408565222,1773892277133,-151.0,0.00015342,2]
[408565223,1773892277143,-190.050238,0.00015342,2]
[408565224,1773892277153,-2612.845104,0.00015342,2]
[408565225,1773892277164,-190.050238,0.00015342,2]
[408565226,1773892277173,-2612.845104,0.00015342,2]
[408565227,1773892277183,-190.050238,0.00015342,2]
[408565228,1773892277193,-2612.845104,0.00015342,2]
[408565229,1773892277203,-190.050242,0.00015342,2]
[408565230,1773892277214,-2612.845111,0.00015342,2]
[408565231,1773892277224,-1951.875944,0.00015342,2]
[408565232,1773892277234,-151.0,0.00015342,2]
[408565233,1773892277245,-240.935014,0.00015342,2]
[408565234,1773892277256,-1951.875944,0.00015342,2]
[408565235,1773892277266,-151.0,0.00015342,2]
[408565236,1773892277277,-240.935014,0.00015342,2]
[408565237,1773892277286,-232.356513,0.00015342,2]
[408565238,1773892277296,-1951.875944,0.00015342,2]
[408565239,1773892277306,-240.935014,0.00015342,2]
[408565240,1773892277316,-1951.875944,0.00015342,2]
[408565241,1773892277326,-240.935009,0.00015342,2]
[408565242,1773892277336,-388.876166,0.00015342,2]
[408565243,1773892277346,-388.876166,0.00015342,2]
[408565244,1773892277357,-388.876166,0.00015342,2]
[408565245,1773892277367,-388.87616,0.00015342,2]
[408565246,1773892277376,-351.175175,0.00015342,2]
[408565247,1773892277386,-284.497635,0.00015342,2]
[408565248,1773892277397,-351.175175,0.00015342,2]
[408565249,1773892277406,-313.163194,0.00015342,2]
[408565250,1773892277416,-351.175175,0.00015342,2]
[408565251,1773892277426,-151.0,0.00015342,2]
[408565252,1773892277436,-313.163194,0.00015342,2]
[408565253,1773892277451,-351.175178,0.00015342,2]
[408565254,1773892277461,-313.163194,0.00015342,2]
[408565255,1773892277471,-153.422015,0.00015342,2]
[408565256,1773892277481,-151.0,0.00015342,2]
[408565257,1773892277491,-1088.37609,0.00015342,2]
[408565258,1773892277502,-770.064578,0.00015342,2]
[408565259,1773892277512,-151.0,0.00015342,2]
[408565260,1773892277529,-1088.37609,0.00015342,2]
[408565261,1773892277542,-770.064578,0.00015342,2]
[408565262,1773892277552,-1088.37609,0.00015342,2]
[408565263,1773892277563,-313.163204,0.00015342,2]
[408565264,1773892277574,-519.224018,0.00015342,2]
[408565265,1773892277586,-770.064578,0.00015342,2]
[408565266,1773892277596,-1088.37609215,0.00015342,2]
[408565267,1773892277606,-519.224018,0.00015342,2]
[408565268,1773892277618,-770.064577,0.00015342,2]
[408565269,1773892277629,-3907.093503,0.00015342,2]
[408565270,1773892277641,-519.224018,0.00015342,2]
[408565271,1773892277652,-3907.093503,0.00015342,2]
[408565272,1773892277663,-519.224022,0.00015342,2]
[408565273,1773892277672,-202.884032,0.00015342,2]
[408565274,1773892277683,-3907.093503,0.00015342,2]
[408565275,1773892277694,-202.884032,0.00015342,2]
[408565276,1773892277706,-3907.093509,0.00015342,2]
[408565277,1773892277716,-151.0,0.00015342,2]
[408565278,1773892277728,-202.884032,0.00015342,2]
[408565279,1773892277739,-151.0,0.00015342,2]
[408565280,1773892277750,-151.0,0.00015342,2]
[408565281,1773892277760,-151.0,0.00015342,2]
[408565282,1773892277772,-202.884039,0.00015342,2]
[408565283,1773892277782,-160.21511,0.00015342,2]
[408565284,1773892277797,-172.340861,0.00015342,2]
[408565285,1773892277807,-151.0,0.00015342,2]
[408565286,1773892277817,-3178.349364,0.00015342,2]
[408565287,1773892277827,-172.340861,0.00015342,2]
[408565288,1773892277838,-3178.349364,0.00015342,2]
[408565289,1773892277848,-172.340861,0.00015342,2]
[408565290,1773892277858,-3178.349364,0.00015342,2]
[408565291,1773892277868,-172.340853,0.00015342,2]
[408565292,1773892277879,-3178.349369,0.00015342,2]
[408565293,1773892277890,-273.968338,0.00015342,2]
[408565294,1773892277900,-273.968338,0.00015342,2]
[408565295,1773892277910,-273.968338,0.00015342,2]
[408565296,1773892277921,-151.0,0.00015342,2]
[408565297,1773892277931,-273.968333,0.00015342,2]
[408565298,1773892277942,-151.0,0.00015342,2]
[408565299,1773892277952,-178.05707,0.00015342,2]
[408565300,1773892277963,-908.823477,0.00015342,2]
[408565301,1773892277973,-151.0,0.00015342,2]
[408565302,1773892277983,-178.05707,0.00015342,2]
[408565303,1773892277994,-908.823477,0.00015342,2]
[408565304,1773892278004,-178.05707,0.00015342,2]
[408565305,1773892278014,-178.057061,0.00015342,2]
[408565306,1773892278024,-908.823477,0.00015342,2]
[408565307,1773892278035,-908.823476,0.00015342,2]
[408565308,1773892278045,-151.0,0.00015342,2]
[408565309,1773892278055,-622.980823,0.00015342,2]
[408565310,1773892278066,-167.089278,0.00015342,2]
[408565311,1773892278075,-1349.424833,0.00015342,2]
[408565312,1773892278085,-151.0,0.00015342,2]
[408565313,1773892278095,-151.0,0.00015342,2]
[408565314,1773892278104,-151.0,0.00015342,2]
[408565315,1773892278114,-622.980823,0.00015342,2]
[408565316,1773892278124,-151.0,0.00015342,2]
[408565317,1773892278133,-1349.424833,0.00015342,2]
[408565318,1773892278143,-151.0,0.00015342,2]
[408565319,1773892278153,-151.0,0.00015342,2]
[408565320,1773892278167,-622.980823,0.00015342,2]
[408565321,1773892278177,-1349.424833,0.00015342,2]
[408565322,1773892278188,-177.471809,0.00015342,2]
[408565323,1773892278197,-622.980815,0.00015342,2]
[408565324,1773892278208,-1349.424825,0.00015342,2]
[408565325,1773892278217,-177.471809,0.00015342,2]
[408565326,1773892278226,-151.0,0.00015342,2]
[408565327,1773892278236,-177.471809,0.00015342,2]
[408565328,1773892278245,-151.0,0.00015342,2]
[408565329,1773892278256,-177.471818,0.00015342,2]
[408565330,1773892278266,-396.95349,0.00015342,2]
[408565331,1773892278276,-160.789322,0.00015342,2]
[408565332,1773892278287,-1961.15092032,0.00015342,2]
[408565333,1773892278296,-2000.0,0.00015342,2]
[408565334,1773892278305,-2000.0,0.00015342,2]
[408565335,1773892278314,-2000.0,0.00015342,2]
[408565336,1773892278324,-1176.1614452,0.00015342,2]
[408565337,1773892278333,-2000.0,0.00015342,2]
[408565338,1773892278343,-2000.0,0.00015342,2]
[408565339,1773892278353,-2000.0,0.00015342,2]
[408565340,1773892278365,-2000.0,0.00015342,2]
[408565341,1773892278375,-2000.0,0.00015342,2]
[408565342,1773892278384,-999.94158246,0.00015342,2]
[408565343,1773892278393,-2000.0,0.00015342,2]
[408565344,1773892278403,-1292.32890878,0.00015342,2]
[408565345,1773892278412,-1034.68838991,0.00015342,2]
[408565346,1773892278421,-1574.83203376,0.00015342,2]
[408565347,1773892278431,-1887.45023446,0.00015342,2]
[408565348,1773892278440,-431.42701484,0.00015342,2]
[408565349,1773892278449,-2000.0,0.00015342,2]
[408565350,1773892278459,-2000.0,0.00015342,2]
[408565351,1773892278468,-2000.0,0.00015342,2]
[408565352,1773892278477,-2000.0,0.00015342,2]
[408565353,1773892278487,-550.20986564,0.00015342,2]
[408565354,1773892278496,-2000.0,0.0001535,2]
[408565355,1773892278505,-1567.0,0.0001536,2]
[408565356,1773892278515,-2402.0,0.0001536,2]
[408565357,1773892278524,-176.0,0.00015366,2]
[408565358,1773892278538,-170.47,0.00015371,2]
[408565359,1773892278548,-152.0,0.00015375,10]
[408565360,1773892278560,-511.45991941,0.000154,2]
[408565361,1773892278570,-176.0,0.00015401,2]
[408565362,1773892278581,-500.0,0.00015422,2]
[408565363,1773892278590,-500.0,0.00015422,2]
[408565364,1773892278599,-500.0,0.00015422,2]
[408565365,1773892278609,-500.0,0.00015422,2]
[408565366,1773892278620,-500.0,0.00015422,2]
[408565367,1773892278629,-500.0,0.00015422,2]
[408565368,1773892278639,-500.0,0.00015422,2]
[408565369,1773892278648,-500.0,0.00015422,2]
[408565370,1773892278658,-500.0,0.00015422,2]
[408565371,1773892278667,-500.0,0.00015422,2]
[408565372,1773892278677,-500.0,0.00015422,2]
[408565373,1773892278686,-500.0,0.00015422,2]
[408565374,1773892278695,-500.0,0.00015422,2]
[408565375,1773892278704,-500.0,0.00015422,2]
[408565376,1773892278714,-524.0,0.00015422,2]
[408565377,1773892278723,-500.0,0.00015422,2]
[408565378,1773892278732,-500.0,0.00015422,2]
[408565379,1773892278741,-500.0,0.00015422,2]
[408565380,1773892278752,-500.0,0.00015422,2]
[408565381,1773892278761,-500.0,0.00015422,2]
[408565382,1773892278770,-500.0,0.00015422,2]
[408565383,1773892278779,-500.0,0.00015422,2]
[408565384,1773892278789,-500.0,0.00015422,2]
[408565385,1773892278799,-500.0,0.00015422,2]
[408565386,1773892278808,-500.0,0.00015422,2]
[408565387,1773892278818,-500.0,0.00015422,2]
[408565388,1773892278827,-500.0,0.00015422,2]
[408565389,1773892278836,-613.0,0.00015422,2]
[408565390,1773892278846,-500.0,0.00015422,2]
[408565391,1773892278855,-500.0,0.00015422,2]
[408565392,1773892278865,-885.0,0.00015422,2]
[408565393,1773892278875,-500.0,0.00015422,2]
[408565394,1773892278884,-500.0,0.00015422,2]
[408565395,1773892278893,-500.0,0.00015422,2]
[408565396,1773892278903,-500.0,0.00015422,2]
[408565397,1773892278912,-176.0,0.00015423,2]
[408565398,1773892278921,-2000.0,0.00015433,2]
[408565399,1773892278930,-1035.7528087,0.00015443,2]
[408565400,1773892278939,-4330.4879501,0.00015443,2]
[408565401,1773892278958,-334.03453,0.00015443,2]
[408565402,1773892278968,-279.754336,0.00015443,2]
[408565403,1773892278978,-334.03453,0.00015443,2]
[408565404,1773892278988,-279.754336,0.00015443,2]
[408565405,1773892278997,-334.03453,0.00015443,2]
[408565406,1773892279007,-279.754336,0.00015443,2]
[408565407,1773892279016,-334.034528,0.00015443,2]
[408565408,1773892279026,-279.754342,0.00015443,2]
[408565409,1773892279035,-151.0,0.00015443,2]
[408565410,1773892279044,-151.0,0.00015443,2]
[408565411,1773892279053,-1291.432253,0.00015443,2]
[408565412,1773892279063,-1291.432253,0.00015443,2]
[408565413,1773892279195,-1291.432253,0.00015443,2]
[408565414,1773892279204,-805.222539,0.00015443,2]
[408565415,1773892279213,-1291.432252,0.00015443,2]
[408565416,1773892279222,-805.222539,0.00015443,2]
[408565417,1773892279231,-805.222539,0.00015443,2]
[408565418,1773892279240,-805.222531,0.00015443,2]
[408565419,1773892279250,-151.0,0.00015443,2]
[408565420,1773892279258,-166.53154,0.00015443,2]
[408565421,1773892279267,-166.422128,0.00015443,2]
[408565422,1773892279276,-151.0,0.00015443,2]
[408565423,1773892279285,-151.0,0.00015443,2]
[408565424,1773892279294,-1342.288594,0.00015443,2]
[408565425,1773892279303,-1342.288594,0.00015443,2]
[408565426,1773892279312,-1342.288594,0.00015443,2]
[408565427,1773892279321,-1342.288603,0.00015443,2]
[408565428,1773892279330,-205.958111,0.00015443,2]
[408565429,1773892279339,-168.475167,0.00015443,2]
[408565430,1773892279349,-185.678206,0.00015443,2]
[408565431,1773892279358,-185.678206,0.00015443,2]
[408565432,1773892279367,-185.678206,0.00015443,2]
[408565433,1773892279377,-185.678208,0.00015443,2]
[408565434,1773892279386,-2000.0,0.0001545,2]
[408565435,1773892279395,-2402.0,0.0001546,2]
[408565436,1773892279404,-1252.0,0.00015476,2]
[408565437,1773892279414,-1228.88155727,0.000155,2]
[408565438,1773892279422,-200.89451688,0.000155,2]
[408565439,1773892279432,-4609.0,0.00015502,2]
[408565440,1773892279441,-4000.0,0.00015507,2]
[408565441,1773892279450,-451.97,0.0001552,2]
[408565442,1773892279461,-152.0,0.00015523,11]
[408565443,1773892279470,-2000.0,0.00015533,2]
[408565444,1773892279479,-2402.0,0.00015535,2]
[408565445,1773892279488,-1600.0,0.00015536,2]
[408565446,1773892279497,-1200.0,0.000156,5]
[408565447,1773892279507,-595.0,0.00015603,2]
[408565448,1773892279517,-934.82,0.00015613,2]
[408565449,1773892279526,-176.0,0.00015627,2]
[408565450,1773892279539,-2000.0,0.00015633,2]
[408565451,1773892279548,-176.0,0.00015637,2]
[408565452,1773892279557,-176.0,0.00015638,2]
[408565453,1773892279566,-350.0,0.00015651,2]
[408565454,1773892279576,-152.0,0.00015671,12]
[408565455,1773892279586,-2402.0,0.0001568,2]
[408565456,1773892279595,-225.106884,0.000157,2]
[408565457,1773892279604,-225.106884,0.000157,2]
[408565458,1773892279614,-225.106884,0.000157,2]
[408565459,1773892279623,-151.0,0.000157,2]
[408565460,1773892279632,-225.106874,0.000157,2]
[408565461,1773892279641,-526.059927,0.000157,2]
[408565462,1773892279650,-526.059927,0.000157,2]
[408565463,1773892279660,-526.059927,0.000157,2]
[408565464,1773892279669,-526.059918,0.000157,2]
[408565465,1773892279679,-506.147903,0.000157,2]
[408565466,1773892279688,-506.147903,0.000157,2]
[408565467,1773892279697,-506.147903,0.000157,2]
[408565468,1773892279707,-506.147905,0.000157,2]
[408565469,1773892279716,-1002.546318,0.000157,2]
[408565470,1773892279725,-1002.546318,0.000157,2]
[408565471,1773892279734,-1002.546318,0.000157,2]
[408565472,1773892279743,-1002.546326,0.000157,2]
[408565473,1773892279752,-500.0,0.000157,2]
[408565474,1773892279761,-500.0,0.000157,2]
[408565475,1773892279770,-500.0,0.000157,2]
[408565476,1773892279779,-500.0,0.000157,2]
[408565477,1773892279789,-500.0,0.000157,2]
[408565478,1773892279798,-521.0,0.000157,2]
[408565479,1773892279807,-500.0,0.000157,2]
[408565480,1773892279816,-500.0,0.000157,2]
[408565481,1773892279826,-500.0,0.000157,2]
[408565482,1773892279835,-500.0,0.000157,2]
[408565483,1773892279845,-500.0,0.000157,2]
[408565484,1773892279854,-500.0,0.000157,2]
[408565485,1773892279864,-500.0,0.000157,2]
[408565486,1773892279873,-500.0,0.000157,2]
[408565487,1773892279882,-512.0,0.000157,2]
[408565488,1773892279891,-1200.0,0.000157,5]
[408565489,1773892279901,-2000.0,0.00015733,2]
[408565490,1773892279911,-3134.15,0.00015753,2]
[408565491,1773892279920,-451.97881709,0.00015754,2]
[408565492,1773892279929,-350.0,0.00015756,4]
[408565493,1773892279938,-350.0,0.00015768,2]
[408565494,1773892279948,-2014.0,0.0001578,2]
[408565495,1773892279957,-151.0,0.000158,2]
[408565496,1773892279967,-1157.460764,0.000158,2]
[408565497,1773892279976,-1157.460764,0.000158,2]
[408565498,1773892279985,-1157.460764,0.000158,2]
[408565499,1773892279994,-1157.460761,0.000158,2]
[408565500,1773892280003,-176.292229,0.000158,2]
[408565501,1773892280013,-151.0,0.000158,2]
[408565502,1773892280022,-151.0,0.000158,2]
[408565503,1773892280031,-151.0,0.000158,2]
[408565504,1773892280040,-151.0,0.000158,2]
[408565505,1773892280049,-151.0,0.000158,2]
[408565506,1773892280059,-151.0,0.000158,2]
[408565507,1773892280069,-504.420128,0.000158,2]
[408565508,1773892280078,-504.420128,0.000158,2]
[408565509,1773892280091,-504.420128,0.000158,2]
[408565510,1773892280101,-504.420135,0.000158,2]
[408565511,1773892280112,-3847.171813,0.000158,2]
[408565512,1773892280121,-347.58021,0.000158,2]
[408565513,1773892280131,-3847.171813,0.000158,2]
[408565514,1773892280140,-347.58021,0.000158,2]
[408565515,1773892280151,-3847.171813,0.000158,2]
[408565516,1773892280162,-347.58021,0.000158,2]
[408565517,1773892280172,-151.0,0.000158,2]
[408565518,1773892280183,-3847.171813,0.000158,2]
[408565519,1773892280192,-347.580212,0.000158,2]
[408565520,1773892280202,-151.0,0.000158,2]
[408565521,1773892280214,-151.0,0.000158,2]
[408565522,1773892280226,-151.0,0.000158,2]
[408565523,1773892280236,-151.0,0.000158,2]
[408565524,1773892280246,-151.0,0.000158,2]
[408565525,1773892280255,-151.0,0.000158,2]
[408565526,1773892280264,-151.0,0.000158,2]
[408565527,1773892280275,-151.0,0.000158,2]
[408565528,1773892280284,-1200.0,0.000158,5]
[408565529,1773892280293,-2254.14799987,0.00015807,2]
[408565530,1773892280303,-152.0,0.00015819,13]
[408565531,1773892280312,-2402.0,0.0001582,2]
[408565532,1773892280321,-2000.0,0.00015831,2]
[408565533,1773892280330,-231.10769,0.00015832,2]
[408565534,1773892280340,-966.2624698,0.00015832,2]
[408565535,1773892280349,-2000.0,0.00015833,2]
[408565536,1773892280359,-350.0,0.00015845,3]
[408565537,1773892280368,-330.0,0.00015865,2]
[408565538,1773892280377,-934.82,0.00015887,2]
[408565539,1773892280387,-151.0,0.00015887,2]
[408565540,1773892280396,-151.0,0.0001589,2]
[408565541,1773892280405,-151.0,0.0001589,2]
[408565542,1773892280415,-213.467602,0.0001589,2]
[408565543,1773892280424,-151.0,0.0001589,2]
[408565544,1773892280433,-151.0,0.0001589,2]
[408565545,1773892280444,-151.0,0.0001589,2]
[408565546,1773892280461,-673.760442,0.0001589,2]
[408565547,1773892280482,-673.760442,0.0001589,2]
[408565548,1773892280491,-673.760442,0.0001589,2]
[408565549,1773892280500,-673.760451,0.0001589,2]
[408565550,1773892280509,-151.0,0.0001589,2]
[408565551,1773892280519,-151.0,0.0001589,2]
[408565552,1773892280529,-151.0,0.0001589,2]
[408565553,1773892280542,-151.0,0.0001589,2]
[408565554,1773892280551,-233.112946,0.0001589,2]
[408565555,1773892280561,-151.0,0.0001589,2]
[408565556,1773892280570,-2000.0,0.0001589,2]
[408565557,1773892280581,-300.0,0.0001589,2]
[408565558,1773892280590,-1432.09789512,0.0001589,2]
[408565559,1773892280599,-2500.0,0.0001589,2]
[408565560,1773892280609,-2500.0,0.0001589,2]
[408565561,1773892280618,-2194.66141584,0.0001589,2]
[408565562,1773892280628,-2500.0,0.0001589,2]
[408565563,1773892280636,-2500.0,0.0001589,2]
[408565564,1773892280647,-2500.0,0.0001589,2]
[408565565,1773892280658,-2500.0,0.0001589,2]
[408565566,1773892280668,-2500.0,0.0001589,2]
[408565567,1773892280678,-1237.3283016,0.0001589,2]
[408565568,1773892280689,-656.4847291,0.0001589,2]
[408565569,1773892280700,-1006.68098994,0.0001589,2]
[408565570,1773892280710,-419.75064279,0.0001589,2]
[408565571,1773892280720,-4000.0,0.00015895,2]
[408565572,1773892280729,-167.25,0.000159,2]
[408565573,1773892280738,-151.0,0.000159,2]
[408565574,1773892280747,-455.526607,0.000159,2]
[408565575,1773892280756,-151.0,0.000159,2]
[408565576,1773892280766,-455.526607,0.000159,2]
[408565577,1773892280775,-194.03456,0.000159,2]
[408565578,1773892280785,-455.526607,0.000159,2]
[408565579,1773892280795,-455.526602,0.000159,2]
[408565580,1773892280804,-1293.543751,0.000159,2]
[408565581,1773892280813,-1293.543751,0.000159,2]
[408565582,1773892280822,-1293.543751,0.000159,2]
[408565583,1773892280831,-1293.54375,0.000159,2]
[408565584,1773892280839,-205.063631,0.000159,2]
[408565585,1773892280849,-205.063631,0.000159,2]
[408565586,1773892280858,-205.063631,0.000159,2]
[408565587,1773892280867,-205.063633,0.000159,2]
[408565588,1773892280877,-690.254152,0.000159,2]
[408565589,1773892280886,-690.254152,0.000159,2]
[408565590,1773892280895,-690.254152,0.000159,2]
[408565591,1773892280905,-220.300068,0.000159,2]
[408565592,1773892280914,-690.254146,0.000159,2]
[408565593,1773892280923,-220.300068,0.000159,2]
[408565594,1773892280932,-220.300068,0.000159,2]
[408565595,1773892280942,-220.300073,0.000159,2]
[408565596,1773892280952,-25000.0,0.000159,3]
[408565597,1773892280962,-25000.0,0.000159,3]
[408565598,1773892280971,-326.12059208,0.000159,3]
[408565599,1773892280982,-150.0,0.000159,2]
[408565600,1773892280992,-150.0,0.000159,2]
[408565601,1773892281003,-151.0,0.000159,2]
[408565602,1773892281012,-151.0,0.000159,2]
[408565603,1773892281021,-151.0,0.000159,2]
[408565604,1773892281031,-151.0,0.000159,2]
[408565605,1773892281040,-263.0861359,0.000159,2]
[408565606,1773892281050,-150.23747724,0.000159,2]
[408565607,1773892281059,-150.0,0.000159,2]
[408565608,1773892281069,-150.0,0.000159,2]
[408565609,1773892281079,-150.0,0.000159,2]
[408565610,1773892281089,-150.0,0.000159,2]
[408565611,1773892281098,-150.0,0.000159,2]
[408565612,1773892281108,-150.0,0.000159,2]
[408565613,1773892281121,-573.86505362,0.000159,2]
[408565614,1773892281132,-573.86505362,0.000159,2]
[408565615,1773892281142,-573.86505362,0.000159,2]
[408565616,1773892281153,-573.86505362,0.000159,2]
[408565617,1773892281163,-573.86505362,0.000159,2]
[408565618,1773892281172,-573.86505362,0.000159,2]
[408565619,1773892281183,-1690.0,0.000159,5]
[408565620,1773892281193,-573.86505362,0.000159,2]
[408565621,1773892281202,-573.86505362,0.000159,2]
[408565622,1773892281213,-573.86505362,0.000159,2]
[408565623,1773892281223,-573.86505362,0.000159,2]
[408565624,1773892281234,-150.0,0.000159,2]
[408565625,1773892281244,-573.86505362,0.000159,2]
[408565626,1773892281255,-573.86505362,0.000159,2]
[408565627,1773892281266,-573.86505362,0.000159,2]
[408565628,1773892281277,-573.86505362,0.000159,2]
[408565629,1773892281288,-573.86505362,0.000159,2]
[408565630,1773892281298,-573.86505362,0.000159,2]
[408565631,1773892281308,-3854.29670893,0.000159,2]
[408565632,1773892281318,-573.86505362,0.000159,2]
[408565633,1773892281329,-573.86505362,0.000159,2]
[408565634,1773892281340,-573.86505362,0.000159,2]
[408565635,1773892281349,-172.94669246,0.000159,2]
[408565636,1773892281360,-198.27873468,0.000159,2]
[408565637,1773892281370,-471.16106526,0.000159,2]
[408565638,1773892281381,-176.9670118,0.00015927,7]
[408565639,1773892281391,-208.99058585,0.0001593,2]
[408565640,1773892281401,-504.0,0.0001593,4]
[408565641,1773892281411,-2000.0,0.00015933,2]
[408565642,1773892281421,-520.503441,0.00015939,2]
[408565643,1773892281432,-520.503441,0.00015939,2]
[408565644,1773892281444,-151.0,0.00015939,2]
[408565645,1773892281454,-520.503441,0.00015939,2]
[408565646,1773892281465,-258.166951,0.00015939,2]
[408565647,1773892281474,-520.503441,0.00015939,2]
[408565648,1773892281485,-258.166951,0.00015939,2]
[408565649,1773892281494,-177.962446,0.00015939,2]
[408565650,1773892281503,-177.962446,0.00015939,2]
[408565651,1773892281513,-258.166951,0.00015939,2]
[408565652,1773892281522,-491.568807,0.00015939,2]
[408565653,1773892281533,-177.962446,0.00015939,2]
[408565654,1773892281547,-258.166951,0.00015939,2]
[408565655,1773892281557,-491.568807,0.00015939,2]
[408565656,1773892281566,-177.962446,0.00015939,2]
[408565657,1773892281575,-491.568807,0.00015939,2]
[408565658,1773892281585,-151.0,0.00015939,2]
[408565659,1773892281594,-491.568807,0.00015939,2]